fUSD/lending_fUSD_20250421
["ID","MTS","AMOUNT","RATE_DAILY","PERIOD"]
[358573025,1745273466117,-500.0,0.00044383,7]
[358573026,1745273466127,-500.0,0.00044383,7]
[358573027,1745273466138,-151.0,0.00044383,14]
[358573028,1745273466147,-500.0,0.00044383,7]
[358573029,1745273466157,-500.0,0.00044383,7]
[358573030,1745273466167,-641.66967959,0.00044383,7]
[358573031,1745273466177,-295.753953,0.00044383,14]
[358573032,1745273466187,-500.0,0.00044383,7]
[358573033,1745273466198,-674.89,0.00044383,7]
[358573034,1745273466208,-500.0,0.00044383,7]
[358573035,1745273466219,-548.24270194,0.00044383,7]
[358573036,1745273466228,-500.0,0.00044383,7]
[358573037,1745273466239,-500.0,0.00044383,7]
[358573038,1745273466248,-500.0,0.00044383,7]
[358573039,1745273466260,-500.0,0.00044383,7]
[358573040,1745273466270,-511.82518281,0.00044383,7]
[358573041,1745273466280,-500.0,0.00044383,7]
[358573042,1745273466290,-1669.69,0.00044383,7]
[358573043,1745273466300,-500.0,0.00044383,7]
[358573044,1745273466310,-500.0,0.00044383,7]
[358573045,1745273466320,-500.0,0.00044383,7]
[358573046,1745273466330,-596.5399124,0.00044383,7]
[358573047,1745273466340,-500.0,0.00044383,7]
[358573048,1745273466353,-500.0,0.00044383,7]
[358573049,1745273466363,-500.0,0.00044383,7]
[358573050,1745273466375,-500.0,0.00044383,7]
[358573051,1745273466390,-500.0,0.00044383,7]
[358573052,1745273466400,-500.0,0.00044383,7]
[358573053,1745273466411,-542.74255012,0.00044383,7]
[358573054,1745273466421,-188.38738217,0.00044383,7]
[358573055,1745273466431,-791.37,0.00044383,7]
[358573056,1745273466441,-500.0,0.00044383,7]
[358573057,1745273466452,-643.64329807,0.00044383,7]
[358573058,1745273466462,-500.0,0.00044383,7]
[358573059,1745273466472,-500.0,0.00044383,7]
[358573060,1745273466482,-500.0,0.00044383,7]
[358573061,1745273466492,-500.0,0.00044383,7]
[358573062,1745273466502,-500.0,0.00044383,7]
[358573063,1745273466512,-500.0,0.00044383,7]
[358573064,1745273466522,-500.0,0.00044383,7]
[358573065,1745273466532,-1023.25,0.00044383,7]
[358573066,1745273466542,-500.0,0.00044383,7]
[358573067,1745273466553,-559.25372118,0.00044383,7]
[358573068,1745273466563,-500.0,0.00044383,7]
[358573069,1745273466574,-1458.87,0.00044383,7]
[358573070,1745273466586,-500.0,0.00044383,7]
[358573071,1745273466759,-537.91680661,0.00044383,7]
[358573072,1745273466768,-500.0,0.00044383,7]
[358573073,1745273466778,-500.0,0.00044383,7]
[358573074,1745273466787,-500.0,0.00044383,7]
[358573075,1745273466796,-500.0,0.00044383,7]
[358573076,1745273466805,-500.0,0.00044383,7]
[358573077,1745273466814,-533.80241481,0.00044383,7]
[358573078,1745273466823,-500.0,0.00044383,7]
[358573079,1745273466832,-506.8656913,0.00044383,7]
[358573080,1745273466841,-500.0,0.00044383,7]
[358573081,1745273466850,-500.0,0.00044383,7]
[358573082,1745273466859,-500.0,0.00044383,7]
[358573083,1745273466868,-500.0,0.00044383,7]
[358573084,1745273466877,-500.0,0.00044383,7]
[358573085,1745273466886,-517.30172272,0.00044383,7]
[358573086,1745273466895,-500.0,0.00044383,7]
[358573087,1745273466904,-500.0,0.00044383,7]
[358573088,1745273466913,-500.0,0.00044383,120]
[358573089,1745273466922,-500.0,0.00044383,7]
[358573090,1745273466933,-500.0,0.00044383,7]
[358573091,1745273466942,-500.0,0.00044383,7]
[358573092,1745273466952,-500.0,0.00044383,7]
[358573093,1745273466961,-500.0,0.00044383,7]
[358573094,1745273466970,-529.82,0.00044383,7]
[358573095,1745273466980,-500.0,0.00044383,7]
[358573096,1745273466989,-500.0,0.00044383,7]
[358573097,1745273466999,-500.0,0.00044383,7]
[358573098,1745273467008,-500.0,0.00044383,7]
[358573099,1745273467017,-500.0,0.00044383,7]
[358573100,1745273467026,-500.0,0.00044383,7]
[358573101,1745273467036,-500.0,0.00044383,7]
[358573102,1745273467046,-500.0,0.00044383,7]
[358573103,1745273467055,-588.37890189,0.00044383,7]
[358573104,1745273467063,-532.80482197,0.00044383,7]
[358573105,1745273467072,-969.44,0.00044383,7]
[358573106,1745273467081,-500.0,0.00044383,7]
[358573107,1745273467091,-500.0,0.00044383,7]
[358573108,1745273467100,-500.0,0.00044383,7]
[358573109,1745273467109,-548.74520835,0.00044383,7]
[358573110,1745273467118,-500.0,0.00044383,7]
[358573111,1745273467127,-500.0,0.00044383,7]
[358573112,1745273467136,-506.93065253,0.00044383,7]
[358573113,1745273467145,-500.0,0.00044383,7]
[358573114,1745273467155,-500.0,0.00044383,7]
[358573115,1745273467163,-551.60882629,0.00044383,7]
[358573116,1745273467173,-500.0,0.00044383,7]
[358573117,1745273467182,-500.0,0.00044383,7]
[358573118,1745273467192,-629.509786,0.00044383,7]
[358573119,1745273467201,-539.72374686,0.00044383,7]
[358573120,1745273467210,-568.62886242,0.00044383,7]
[358573121,1745273467220,-690.93,0.00044383,7]
[358573122,1745273467229,-500.0,0.00044383,7]
[358573123,1745273467239,-500.0,0.00044383,7]
[358573124,1745273467249,-500.0,0.00044383,7]
[358573125,1745273467258,-559.15475993,0.00044383,7]
[358573126,1745273467268,-738.74847946,0.00044383,7]
[358573127,1745273467277,-500.0,0.00044383,7]
[358573128,1745273467286,-500.0,0.00044383,7]
[358573129,1745273467296,-500.0,0.00044383,7]
[358573130,1745273467305,-500.0,0.00044383,7]
[358573131,1745273467314,-500.0,0.00044383,7]
[358573132,1745273467323,-500.0,0.00044383,7]
[358573133,1745273467332,-500.0,0.00044383,7]
[358573134,1745273467341,-593.3,0.00044383,7]
[358573135,1745273467350,-1494.4,0.00044383,7]
[358573136,1745273467359,-815.18,0.00044383,7]
[358573137,1745273467368,-500.0,0.00044383,7]
[358573138,1745273467379,-2474.26,0.00044383,7]
[358573139,1745273467390,-500.0,0.00044383,7]
[358573140,1745273467399,-500.0,0.00044383,7]
[358573141,1745273467408,-847.59,0.00044383,7]
[358573142,1745273467416,-500.0,0.00044383,7]
[358573143,1745273467427,-847.27,0.00044383,7]
[358573144,1745273467436,-1385.14,0.00044383,7]
[358573145,1745273467445,-1515.36,0.00044383,7]
[358573146,1745273467454,-710.84,0.00044383,7]
[358573147,1745273467463,-500.0,0.00044383,7]
[358573148,1745273467472,-500.0,0.00044383,7]
[358573149,1745273467482,-500.0,0.00044383,7]
[358573150,1745273467491,-585.36,0.00044383,7]
[358573151,1745273467500,-500.0,0.00044383,7]
[358573152,1745273467509,-540.95,0.00044383,7]
[358573153,1745273467518,-500.0,0.00044383,7]
[358573154,1745273467527,-500.0,0.00044383,7]
[358573155,1745273467536,-500.0,0.00044383,7]
[358573156,1745273467545,-500.0,0.00044383,7]
[358573157,1745273467555,-240.00633086,0.00044383,7]
[358573158,1745273467564,-500.0,0.00044383,7]
[358573159,1745273467573,-500.0,0.00044383,7]
[358573160,1745273467582,-2340.33,0.00044383,7]
[358573161,1745273467591,-328.91020263,0.00044383,7]
[358573162,1745273467600,-500.0,0.00044383,7]
[358573163,1745273467609,-500.0,0.00044383,7]
[358573164,1745273467618,-500.0,0.00044383,7]
[358573165,1745273467627,-500.0,0.00044383,7]
[358573166,1745273467635,-500.0,0.00044383,7]
[358573167,1745273467645,-623.44,0.00044383,7]
[358573168,1745273467654,-500.0,0.00044383,7]
[358573169,1745273467663,-500.0,0.00044383,7]
[358573170,1745273467672,-500.0,0.00044383,7]
[358573171,1745273467681,-500.0,0.00044383,7]
[358573172,1745273467690,-500.0,0.00044383,7]
[358573173,1745273467699,-500.0,0.00044383,7]
[358573174,1745273467708,-500.0,0.00044383,7]
[358573175,1745273467717,-826.96,0.00044383,7]
[358573176,1745273467726,-500.0,0.00044383,7]
[358573177,1745273467735,-500.0,0.00044383,7]
[358573178,1745273467744,-500.0,0.00044383,7]
[358573179,1745273467753,-500.0,0.00044383,7]
[358573180,1745273467762,-500.0,0.00044383,7]
[358573181,1745273467771,-500.0,0.00044383,7]
[358573182,1745273467784,-500.0,0.00044383,7]
[358573183,1745273467794,-519.36,0.00044383,7]
[358573184,1745273467803,-1297.18,0.00044383,7]
[358573185,1745273467812,-500.0,0.00044383,7]
[358573186,1745273467822,-500.0,0.00044383,7]
[358573187,1745273467831,-500.0,0.00044383,7]
[358573188,1745273467841,-514.13,0.00044383,7]
[358573189,1745273467850,-500.0,0.00044383,7]
[358573190,1745273467860,-500.0,0.00044383,7]
[358573191,1745273467869,-500.0,0.00044383,7]
[358573192,1745273467878,-980.71,0.00044383,7]
[358573193,1745273467889,-500.0,0.00044383,7]
[358573194,1745273467898,-500.0,0.00044383,7]
[358573195,1745273467908,-500.0,0.00044383,7]
[358573196,1745273467917,-500.0,0.00044383,7]
[358573197,1745273467926,-301.11324506,0.00044383,7]
[358573198,1745273467936,-500.0,0.00044383,7]
[358573199,1745273467946,-500.0,0.00044383,7]
[358573200,1745273467957,-500.0,0.00044383,7]
[358573201,1745273467967,-706.63,0.00044383,7]
[358573202,1745273467976,-500.0,0.00044383,7]
[358573203,1745273467987,-500.0,0.00044383,7]
[358573204,1745273467996,-505.39295571,0.00044383,7]
[358573205,1745273468006,-579.09,0.00044383,7]
[358573206,1745273468016,-566.96915352,0.00044383,7]
[358573207,1745273468026,-858.69,0.00044383,7]
[358573208,1745273468036,-399.741406,0.00044383,7]
[358573209,1745273468046,-500.0,0.00044383,7]
[358573210,1745273468056,-881.75,0.00044383,7]
[358573211,1745273468067,-711.53,0.00044383,7]
[358573212,1745273468076,-884.65,0.00044383,7]
[358573213,1745273468086,-500.0,0.00044383,7]
[358573214,1745273468096,-205.13575324,0.00044383,7]
[358573215,1745273468106,-904.67,0.00044383,7]
[358573216,1745273468116,-500.0,0.00044383,7]
[358573217,1745273468126,-500.0,0.00044383,7]
[358573218,1745273468136,-1183.26,0.00044383,7]
[358573219,1745273468146,-500.0,0.00044383,7]
[358573220,1745273468156,-546.21,0.00044383,7]
[358573221,1745273468166,-500.0,0.00044383,7]
[358573222,1745273468176,-1290.34,0.00044383,7]
[358573223,1745273468186,-300.0,0.00044383,7]
[358573224,1745273468196,-1419.16,0.00044383,7]
[358573225,1745273468205,-250.0,0.00044383,7]
[358573226,1745273468215,-500.0,0.00044383,7]
[358573227,1745273468224,-863.91,0.00044383,7]
[358573228,1745273468235,-500.0,0.00044383,7]
[358573229,1745273468244,-1668.61,0.00044383,7]
[358573230,1745273468254,-500.0,0.00044383,7]
[358573231,1745273468264,-500.0,0.00044383,7]
[358573232,1745273468274,-1001.34,0.00044383,7]
[358573233,1745273468284,-500.0,0.00044383,7]
[358573234,1745273468294,-500.0,0.00044383,7]
[358573235,1745273468304,-500.0,0.00044383,7]
[358573236,1745273468314,-500.0,0.00044383,7]
[358573237,1745273468324,-500.0,0.00044383,7]
[358573238,1745273468334,-2387.71,0.00044383,7]
[358573239,1745273468344,-500.0,0.00044383,7]
[358573240,1745273468354,-500.0,0.00044383,7]
[358573241,1745273468364,-500.0,0.00044383,7]
[358573242,1745273468375,-500.0,0.00044383,7]
[358573243,1745273468389,-500.0,0.00044383,7]
[358573244,1745273468399,-500.0,0.00044383,7]
[358573245,1745273468409,-500.0,0.00044383,7]
[358573246,1745273468418,-1099.51,0.00044383,7]
[358573247,1745273468430,-483.61157394,0.00044383,7]
[358573248,1745273468439,-500.0,0.00044383,7]
[358573249,1745273468448,-657.93,0.00044383,7]
[358573250,1745273468460,-500.0,0.00044383,7]
[358573251,1745273468470,-500.0,0.00044383,7]
[358573252,1745273468480,-500.0,0.00044383,7]
[358573253,1745273468490,-500.0,0.00044383,7]
[358573254,1745273468500,-786.17,0.00044383,7]
[358573255,1745273468510,-500.0,0.00044383,7]
[358573256,1745273468519,-500.0,0.00044383,7]
[358573257,1745273468529,-500.0,0.00044383,7]
[358573258,1745273468539,-1738.61,0.00044383,7]
[358573259,1745273468548,-1177.97,0.00044383,7]
[358573260,1745273468558,-1533.1,0.00044383,7]
[358573261,1745273468568,-151.0,0.00044383,14]
[358573262,1745273468578,-500.0,0.00044383,7]
[358573263,1745273468588,-500.0,0.00044383,7]
[358573264,1745273468598,-601.4,0.00044383,7]
[358573265,1745273468608,-500.0,0.00044383,7]
[358573266,1745273468618,-604.48,0.00044383,7]
[358573267,1745273468627,-500.0,0.00044383,7]
[358573268,1745273468637,-500.0,0.00044383,7]
[358573269,1745273468647,-500.0,0.00044383,7]
[358573270,1745273468656,-947.57,0.00044383,7]
[358573271,1745273468666,-500.0,0.00044383,7]
[358573272,1745273468676,-500.0,0.00044383,7]
[358573273,1745273468686,-500.0,0.00044383,7]
[358573274,1745273468696,-500.0,0.00044383,7]
[358573275,1745273468706,-1198.33,0.00044383,7]
[358573276,1745273468715,-779.43,0.00044383,7]
[358573277,1745273468725,-500.0,0.00044383,7]
[358573278,1745273468735,-500.0,0.00044383,7]
[358573279,1745273468745,-559.70547074,0.00044383,7]
[358573280,1745273468754,-580.05,0.00044383,7]
[358573281,1745273468763,-927.9,0.00044383,7]
[358573282,1745273468773,-496.31353602,0.00044383,7]
[358573283,1745273468783,-500.0,0.00044383,7]
[358573284,1745273468793,-500.0,0.00044383,7]
[358573285,1745273468803,-210.15697971,0.00044383,7]
[358573286,1745273468813,-500.0,0.00044383,7]
[358573287,1745273468823,-161.16527745,0.00044383,7]
[358573288,1745273468833,-500.0,0.00044383,7]
[358573289,1745273468843,-500.0,0.00044383,7]
[358573290,1745273468853,-1505.54,0.00044383,7]
[358573291,1745273468863,-500.0,0.00044383,7]
[358573292,1745273468872,-500.0,0.00044383,7]
[358573293,1745273468881,-635.74,0.00044383,7]
[358573294,1745273468891,-500.0,0.00044383,7]
[358573295,1745273468901,-500.0,0.00044383,7]
[358573296,1745273468911,-729.68,0.00044383,7]
[358573297,1745273468920,-500.0,0.00044383,7]
[358573298,1745273468930,-537.78819576,0.00044383,7]
[358573299,1745273468939,-1567.41,0.00044383,7]
[358573300,1745273468949,-512.33177266,0.00044383,7]
[358573301,1745273468958,-1953.23,0.00044383,7]
[358573302,1745273468967,-1438.84,0.00044383,7]
[358573303,1745273468976,-151.0,0.00044383,14]
[358573304,1745273468986,-500.0,0.00044383,7]
[358573305,1745273468995,-500.0,0.00044383,7]
[358573306,1745273469005,-2454.44,0.00044383,7]
[358573307,1745273469014,-500.0,0.00044383,7]
[358573308,1745273469023,-500.0,0.00044383,7]
[358573309,1745273469033,-500.0,0.00044383,7]
[358573310,1745273469042,-951.19,0.00044383,7]
[358573311,1745273469051,-500.0,0.00044383,7]
[358573312,1745273469060,-500.0,0.00044383,7]
[358573313,1745273469070,-451.36685248,0.00044383,7]
[358573314,1745273469080,-500.0,0.00044383,7]
[358573315,1745273469089,-500.0,0.00044383,7]
[358573316,1745273469100,-500.0,0.00044383,7]
[358573317,1745273469109,-500.0,0.00044383,7]
[358573318,1745273469119,-500.0,0.00044383,7]
[358573319,1745273469128,-500.0,0.00044383,7]
[358573320,1745273469138,-500.0,0.00044383,7]
[358573321,1745273469148,-500.0,0.00044383,7]
[358573322,1745273469158,-339.67510776,0.00044383,7]
[358573323,1745273469167,-500.0,0.00044383,7]
[358573324,1745273469177,-500.0,0.00044383,7]
[358573325,1745273469186,-1772.65,0.00044383,7]
[358573326,1745273469196,-500.0,0.00044383,7]
[358573327,1745273469206,-186.34023136,0.00044383,7]
[358573328,1745273469215,-500.0,0.00044383,7]
[358573329,1745273469226,-1520.58,0.00044383,7]
[358573330,1745273469235,-500.0,0.00044383,7]
[358573331,1745273469244,-500.0,0.00044383,7]
[358573332,1745273469254,-500.0,0.00044383,7]
[358573333,1745273469418,-500.0,0.00044383,30]
[358573334,1745273469430,-1100.31,0.00044383,7]
[358573335,1745273469439,-578.98433171,0.00044383,7]
[358573336,1745273469448,-500.0,0.00044383,7]
[358573337,1745273469458,-500.0,0.00044383,7]
[358573338,1745273469468,-500.0,0.00044383,7]
[358573339,1745273469477,-500.0,0.00044383,7]
[358573340,1745273469486,-1134.03,0.00044383,7]
[358573341,1745273469495,-151.0,0.00044383,14]
[358573342,1745273469504,-506.63485367,0.00044383,7]
[358573343,1745273469514,-2906.42,0.00044383,7]
[358573344,1745273469523,-500.0,0.00044383,7]
[358573345,1745273469532,-1000.0,0.00044383,120]
[358573346,1745273469541,-765.04,0.00044383,7]
[358573347,1745273469551,-500.0,0.00044383,7]
[358573348,1745273469560,-500.0,0.00044383,7]
[358573349,1745273469569,-658.02,0.00044383,7]
[358573350,1745273469578,-500.0,0.00044383,7]
[358573351,1745273469587,-500.0,0.00044383,7]
[358573352,1745273469596,-500.0,0.00044383,7]
[358573353,1745273469606,-500.0,0.00044383,7]
[358573354,1745273469615,-500.0,0.00044383,7]
[358573355,1745273469624,-702.96,0.00044383,7]
[358573356,1745273469633,-533.65285747,0.00044383,7]
[358573357,1745273469642,-687.2,0.00044383,7]
[358573358,1745273469651,-500.0,0.00044383,7]
[358573359,1745273469661,-642.06182828,0.00044383,7]
[358573360,1745273469670,-500.0,0.00044383,7]
[358573361,1745273469679,-1543.41,0.00044383,7]
[358573362,1745273469688,-151.0,0.00044383,14]
[358573363,1745273469697,-500.0,0.00044383,7]
[358573364,1745273469706,-500.0,0.00044383,7]
[358573365,1745273469715,-500.0,0.00044383,7]
[358573366,1745273469725,-500.0,0.00044383,7]
[358573367,1745273469735,-500.0,0.00044383,7]
[358573368,1745273469744,-500.0,0.00044383,7]
[358573369,1745273469754,-500.0,0.00044383,7]
[358573370,1745273469764,-1256.12,0.00044383,7]
[358573371,1745273469773,-500.0,0.00044383,7]
[358573372,1745273469782,-500.0,0.00044383,7]
[358573373,1745273469791,-400.57131153,0.00044383,7]
[358573374,1745273469801,-621.72,0.00044383,7]
[358573375,1745273469810,-430.63776084,0.00044383,7]
[358573376,1745273469820,-500.0,0.00044383,7]
[358573377,1745273469829,-500.0,0.00044383,7]
[358573378,1745273469838,-500.0,0.00044383,7]
[358573379,1745273469848,-151.0,0.00044383,14]
[358573380,1745273469858,-500.0,0.00044383,7]
[358573381,1745273469868,-532.5307714,0.00044383,7]
[358573382,1745273469878,-494.1042223,0.00044383,7]
[358573383,1745273469888,-552.36829623,0.00044383,7]
[358573384,1745273469900,-506.68,0.00044383,7]
[358573385,1745273469910,-500.0,0.00044383,7]
[358573386,1745273469919,-500.0,0.00044383,7]
[358573387,1745273469929,-500.0,0.00044383,7]
[358573388,1745273469939,-1317.58,0.00044383,7]
[358573389,1745273469949,-500.0,0.00044383,7]
[358573390,1745273469959,-500.0,0.00044383,7]
[358573391,1745273469969,-500.0,0.00044383,7]
[358573392,1745273469978,-313.47073461,0.00044383,7]
[358573393,1745273469988,-685.99,0.00044383,7]
[358573394,1745273469998,-821.12,0.00044383,7]
[358573395,1745273470008,-500.0,0.00044383,7]
[358573396,1745273470018,-797.08,0.00044383,7]
[358573397,1745273470029,-1948.41,0.00044383,7]
[358573398,1745273470039,-500.0,0.00044383,7]
[358573399,1745273470048,-1659.14,0.00044383,7]
[358573400,1745273470058,-1048.75,0.00044383,7]
[358573401,1745273470068,-1221.11,0.00044383,7]
[358573402,1745273470078,-500.0,0.00044383,7]
[358573403,1745273470087,-500.0,0.00044383,7]
[358573404,1745273470096,-1335.52,0.00044383,7]
[358573405,1745273470106,-500.0,0.00044383,7]
[358573406,1745273470116,-500.0,0.00044383,7]
[358573407,1745273470125,-500.0,0.00044383,7]
[358573408,1745273470135,-500.0,0.00044383,7]
[358573409,1745273470145,-500.0,0.00044383,7]
[358573410,1745273470156,-500.0,0.00044383,7]
[358573411,1745273470166,-500.0,0.00044383,7]
[358573412,1745273470176,-816.95,0.00044383,7]
[358573413,1745273470186,-672.04,0.00044383,7]
[358573414,1745273470195,-500.0,0.00044383,7]
[358573415,1745273470205,-151.0,0.00044383,14]
[358573416,1745273470215,-500.0,0.00044383,7]
[358573417,1745273470225,-500.0,0.00044383,7]
[358573418,1745273470235,-1122.27,0.00044383,7]
[358573419,1745273470244,-500.0,0.00044383,7]
[358573420,1745273470254,-500.0,0.00044383,7]
[358573421,1745273470263,-550.89765775,0.00044383,7]
[358573422,1745273470273,-500.0,0.00044383,7]
[358573423,1745273470282,-500.0,0.00044383,7]
[358573424,1745273470292,-500.0,0.00044383,7]
[358573425,1745273470302,-500.0,0.00044383,7]
[358573426,1745273470311,-583.75,0.00044383,7]
[358573427,1745273470320,-500.0,0.00044383,7]
[358573428,1745273470330,-762.02,0.00044383,7]
[358573429,1745273470340,-941.01,0.00044383,7]
[358573430,1745273470350,-500.0,0.00044383,7]
[358573431,1745273470360,-500.0,0.00044383,7]
[358573432,1745273470369,-151.0,0.00044383,14]
[358573433,1745273470381,-500.0,0.00044383,7]
[358573434,1745273470391,-151.0,0.00044383,14]
[358573435,1745273470400,-500.0,0.00044383,7]
[358573436,1745273470411,-972.18792184,0.00044383,7]
[358573437,1745273470420,-500.0,0.00044383,7]
[358573438,1745273470430,-500.0,0.00044383,7]
[358573439,1745273470440,-500.0,0.00044383,7]
[358573440,1745273470451,-500.0,0.00044383,7]
[358573441,1745273470462,-505.77487227,0.00044383,7]
[358573442,1745273470472,-500.0,0.00044383,7]
[358573443,1745273470481,-500.0,0.00044383,7]
[358573444,1745273470492,-500.0,0.00044383,7]
[358573445,1745273470502,-500.0,0.00044383,7]
[358573446,1745273470511,-248.62483484,0.00044383,7]
[358573447,1745273470521,-500.0,0.00044383,7]
[358573448,1745273470531,-500.0,0.00044383,7]
[358573449,1745273470540,-500.0,0.00044383,7]
[358573450,1745273470550,-500.0,0.00044383,7]
[358573451,1745273470559,-500.0,0.00044383,7]
[358573452,1745273470569,-500.0,0.00044383,7]
[358573453,1745273470578,-500.0,0.00044383,7]
[358573454,1745273470588,-500.0,0.00044383,7]
[358573455,1745273470597,-500.0,0.00044383,7]
[358573456,1745273470607,-500.0,0.00044383,7]
[358573457,1745273470616,-500.0,0.00044383,7]
[358573458,1745273470625,-500.0,0.00044383,7]
[358573459,1745273470635,-1158.5,0.00044383,7]
[358573460,1745273470644,-527.40990915,0.00044383,7]
[358573461,1745273470654,-500.0,0.00044383,7]
[358573462,1745273470663,-500.0,0.00044383,7]
[358573463,1745273470673,-772.47,0.00044383,7]
[358573464,1745273470682,-500.0,0.00044383,7]
[358573465,1745273470691,-174.45501604,0.00044383,7]
[358573466,1745273470701,-500.0,0.00044383,7]
[358573467,1745273470711,-159.768622,0.00044383,14]
[358573468,1745273470721,-500.0,0.00044383,7]
[358573469,1745273470730,-500.0,0.00044383,7]
[358573470,1745273470740,-500.0,0.00044383,7]
[358573471,1745273470750,-500.0,0.00044383,7]
[358573472,1745273470760,-159.768622,0.00044383,14]
[358573473,1745273470769,-500.0,0.00044383,7]
[358573474,1745273470779,-500.0,0.00044383,7]
[358573475,1745273470792,-583.01,0.00044383,7]
[358573476,1745273470801,-500.0,0.00044383,7]
[358573477,1745273470810,-500.0,0.00044383,7]
[358573478,1745273470820,-500.0,0.00044383,7]
[358573479,1745273470829,-500.0,0.00044383,7]
[358573480,1745273470839,-500.0,0.00044383,7]
[358573481,1745273470848,-151.0,0.00044383,14]
[358573482,1745273470856,-500.0,0.00044383,7]
[358573483,1745273470866,-500.0,0.00044383,7]
[358573484,1745273470875,-151.0,0.00044383,14]
[358573485,1745273470884,-500.0,0.00044383,7]
[358573486,1745273470896,-151.0,0.00044383,14]
[358573487,1745273470906,-500.0,0.00044383,7]
[358573488,1745273470915,-500.0,0.00044383,7]
[358573489,1745273470925,-500.0,0.00044383,7]
[358573490,1745273470934,-500.0,0.00044383,7]
[358573491,1745273470944,-500.0,0.00044383,7]
[358573492,1745273470954,-973.17,0.00044383,7]
[358573493,1745273470963,-500.0,0.00044383,7]
[358573494,1745273470972,-500.0,0.00044383,7]
[358573495,1745273470981,-867.69,0.00044383,7]
[358573496,1745273470991,-318.97945535,0.00044383,7]
[358573497,1745273471000,-500.0,0.00044383,7]
[358573498,1745273471010,-500.0,0.00044383,7]
[358573499,1745273471019,-500.0,0.00044383,7]
[358573500,1745273471029,-901.45,0.00044383,7]
[358573501,1745273471039,-1047.72,0.00044383,7]
[358573502,1745273471049,-996.82,0.00044383,7]
[358573503,1745273471059,-500.0,0.00044383,7]
[358573504,1745273471068,-612.68285059,0.00044383,7]
[358573505,1745273471078,-579.54145069,0.00044383,7]
[358573506,1745273471088,-500.0,0.00044383,7]
[358573507,1745273471098,-500.0,0.00044383,7]
[358573508,1745273471108,-500.0,0.00044383,7]
[358573509,1745273471118,-1136.8,0.00044383,7]
[358573510,1745273471128,-1393.67,0.00044383,7]
[358573511,1745273471138,-919.49,0.00044383,7]
[358573512,1745273471148,-500.0,0.00044383,7]
[358573513,1745273471157,-1952.74,0.00044383,7]
[358573514,1745273471167,-500.0,0.00044383,2]
[358573515,1745273471176,-1469.516003,0.00044383,14]
[358573516,1745273471185,-500.0,0.00044383,7]
[358573517,1745273471195,-500.0,0.00044383,7]
[358573518,1745273471205,-500.0,0.00044383,7]
[358573519,1745273471214,-3067.74,0.00044383,7]
[358573520,1745273471224,-500.0,0.00044383,7]
[358573521,1745273471233,-1469.516003,0.00044383,14]
[358573522,1745273471246,-500.0,0.00044383,7]
[358573523,1745273471255,-500.0,0.00044383,7]
[358573524,1745273471265,-514.38896866,0.00044383,7]